fUSD/lending_fUSD_20241121
["ID","MTS","AMOUNT","RATE_DAILY","PERIOD"]
[342959532,1732225842257,-500.0,0.00038629,11]
[342959533,1732225842268,-500.0,0.00038629,11]
[342959534,1732225842278,-500.0,0.00038629,11]
[342959535,1732225842289,-500.0,0.00038629,11]
[342959536,1732225842299,-500.0,0.00038629,11]
[342959537,1732225842308,-500.0,0.00038629,11]
[342959538,1732225842318,-151.0,0.00038629,14]
[342959539,1732225842327,-500.0,0.0003863,11]
[342959540,1732225842337,-500.0,0.0003863,11]
[342959541,1732225842347,-500.0,0.0003863,11]
[342959542,1732225842357,-500.0,0.0003863,11]
[342959543,1732225842366,-500.0,0.0003863,11]
[342959544,1732225842375,-500.0,0.0003863,11]
[342959545,1732225842384,-500.0,0.0003863,11]
[342959546,1732225842395,-151.0,0.0003863,14]
[342959547,1732225842404,-500.0,0.0003863,11]
[342959548,1732225842413,-500.0,0.0003863,11]
[342959549,1732225842424,-598.88584611,0.0003863,11]
[342959550,1732225842434,-500.0,0.0003863,11]
[342959551,1732225842443,-500.0,0.0003863,11]
[342959552,1732225842452,-500.0,0.0003863,11]
[342959553,1732225842461,-370.1,0.0003863,11]
[342959554,1732225842471,-500.0,0.0003863,11]
[342959555,1732225842480,-500.0,0.0003863,11]
[342959556,1732225842491,-500.0,0.0003863,11]
[342959557,1732225842502,-507.5560032,0.0003863,11]
[342959558,1732225842515,-500.0,0.0003863,11]
[342959559,1732225842524,-500.0,0.0003863,11]
[342959560,1732225842533,-598.52,0.0003863,11]
[342959561,1732225842542,-151.0,0.0003863,14]
[342959562,1732225842553,-151.0,0.0003863,14]
[342959563,1732225842562,-500.0,0.0003863,11]
[342959564,1732225842571,-500.0,0.0003863,11]
[342959565,1732225842580,-500.0,0.0003863,11]
[342959566,1732225842589,-451.20781146,0.0003863,11]
[342959567,1732225842598,-500.0,0.0003863,11]
[342959568,1732225842607,-500.0,0.0003863,11]
[342959569,1732225842616,-500.0,0.0003863,11]
[342959570,1732225842624,-447.74,0.0003863,11]
[342959571,1732225842633,-500.0,0.0003863,11]
[342959572,1732225842642,-500.0,0.0003863,11]
[342959573,1732225842651,-500.0,0.0003863,11]
[342959574,1732225842660,-500.0,0.0003863,11]
[342959575,1732225842669,-578.41892272,0.0003863,11]
[342959576,1732225842678,-500.0,0.0003863,11]
[342959577,1732225842687,-554.76,0.0003863,11]
[342959578,1732225842696,-151.0,0.0003863,14]
[342959579,1732225842704,-151.0,0.0003863,14]
[342959580,1732225842713,-151.0,0.0003863,14]
[342959581,1732225842722,-151.0,0.0003863,14]
[342959582,1732225842731,-151.0,0.0003863,14]
[342959583,1732225842740,-151.0,0.0003863,14]
[342959584,1732225842749,-500.0,0.0003863,11]
[342959585,1732225842758,-500.0,0.0003863,11]
[342959586,1732225842768,-151.0,0.0003863,14]
[342959587,1732225842778,-151.0,0.0003863,14]
[342959588,1732225842787,-500.0,0.0003863,11]
[342959589,1732225842796,-500.0,0.0003863,11]
[342959590,1732225842805,-500.0,0.0003863,11]
[342959591,1732225842815,-500.0,0.0003863,11]
[342959592,1732225842825,-151.0,0.0003863,14]
[342959593,1732225842834,-151.0,0.0003863,14]
[342959594,1732225842843,-500.0,0.0003863,11]
[342959595,1732225842852,-500.0,0.0003863,11]
[342959596,1732225842862,-500.0,0.0003863,11]
[342959597,1732225842871,-500.0,0.0003863,11]
[342959598,1732225842881,-151.0,0.0003863,14]
[342959599,1732225842890,-151.0,0.0003863,14]
[342959600,1732225842899,-151.0,0.0003863,14]
[342959601,1732225842910,-151.0,0.0003863,14]
[342959602,1732225842919,-277.916874,0.0003863,14]
[342959603,1732225842928,-151.0,0.0003863,14]
[342959604,1732225842937,-151.0,0.0003863,14]
[342959605,1732225842946,-151.0,0.0003863,14]
[342959606,1732225842955,-151.0,0.0003863,14]
[342959607,1732225842965,-500.0,0.0003863,11]
[342959608,1732225842975,-151.0,0.0003863,14]
[342959609,1732225842984,-500.0,0.0003863,11]
[342959610,1732225842994,-151.0,0.0003863,14]
[342959612,1732225843003,-151.0,0.0003863,14]
[342959613,1732225843012,-500.0,0.0003863,11]
[342959614,1732225843022,-151.0,0.0003863,14]
[342959615,1732225843031,-151.0,0.0003863,14]
[342959616,1732225843040,-151.0,0.0003863,14]
[342959617,1732225843051,-500.0,0.0003863,11]
[342959618,1732225843060,-151.0,0.0003863,14]
[342959619,1732225843070,-151.0,0.0003863,14]
[342959620,1732225843080,-151.0,0.0003863,14]
[342959622,1732225843090,-500.0,0.0003863,11]
[342959623,1732225843099,-500.0,0.0003863,11]
[342959624,1732225843109,-500.0,0.0003863,11]
[342959625,1732225843118,-500.0,0.0003863,11]
[342959627,1732225843127,-500.0,0.0003863,11]
[342959629,1732225843136,-500.0,0.0003863,11]
[342959631,1732225843146,-500.0,0.0003863,11]
[342959633,1732225843156,-508.55,0.0003863,11]
[342959635,1732225843165,-500.0,0.0003863,11]
[342959637,1732225843174,-500.0,0.0003863,11]
[342959638,1732225843183,-500.0,0.0003863,11]
[342959639,1732225843192,-500.0,0.0003863,11]
[342959640,1732225843203,-500.0,0.0003863,11]
[342959641,1732225843212,-500.0,0.0003863,11]
[342959642,1732225843221,-500.0,0.0003863,11]
[342959643,1732225843231,-500.0,0.0003863,11]
[342959644,1732225843242,-151.0,0.0003863,14]
[342959645,1732225843251,-151.0,0.0003863,14]
[342959647,1732225843260,-151.0,0.0003863,14]
[342959648,1732225843270,-500.0,0.0003863,11]
[342959649,1732225843280,-500.0,0.0003863,11]
[342959650,1732225843290,-500.0,0.0003863,11]
[342959651,1732225843299,-500.0,0.0003863,11]
[342959652,1732225843308,-500.0,0.0003863,11]
[342959653,1732225843317,-151.0,0.0003863,14]
[342959654,1732225843328,-295.28425,0.0003863,14]
[342959655,1732225843338,-500.0,0.0003863,11]
[342959656,1732225843348,-500.0,0.0003863,11]
[342959657,1732225843357,-500.0,0.0003863,11]
[342959658,1732225843367,-500.0,0.0003863,11]
[342959659,1732225843376,-500.0,0.0003863,11]
[342959660,1732225843386,-500.0,0.0003863,11]
[342959661,1732225843395,-500.0,0.0003863,11]
[342959662,1732225843408,-500.0,0.0003863,11]
[342959663,1732225843418,-500.0,0.0003863,11]
[342959664,1732225843427,-2195.483227,0.0003863,14]
[342959665,1732225843437,-2195.483227,0.0003863,14]
[342959666,1732225843446,-2195.483227,0.0003863,14]
[342959667,1732225843455,-425.0,0.0003863,11]
[342959668,1732225843464,-2195.483227,0.0003863,14]
[342959669,1732225843474,-2195.483227,0.0003863,14]
[342959670,1732225843483,-1792.92466725,0.0003863,14]
[342959671,1732225843629,-402.55855975,0.0003863,14]
[342959672,1732225843638,-2259.31603,0.0003863,14]
[342959673,1732225843648,-2259.31603,0.0003863,14]
[342959674,1732225843657,-151.0,0.0003863,14]
[342959675,1732225843667,-151.0,0.0003863,14]
[342959676,1732225843678,-916.80938025,0.0003863,14]
[342959677,1732225843705,-500.0,0.000367,2]
[342959679,1732225843715,-1342.50664975,0.0003863,14]
[342959680,1732225843726,-151.0,0.0003863,14]
[342959681,1732225843735,-500.0,0.0003863,11]
[342959682,1732225843744,-500.0,0.0003863,11]
[342959683,1732225843753,-151.0,0.0003863,14]
[342959684,1732225843762,-2259.31603,0.0003863,14]
[342959685,1732225843771,-500.0,0.0003863,11]
[342959686,1732225843781,-151.0,0.0003863,14]
[342959687,1732225843791,-151.0,0.0003863,14]
[342959688,1732225843800,-500.0,0.0003863,11]
[342959689,1732225843810,-2259.31603,0.0003863,14]
[342959691,1732225843819,-2259.31603,0.0003863,14]
[342959693,1732225843828,-106.36544188,0.0003863,11]
[342959697,1732225843921,-393.63455812,0.0003863,11]
[342959699,1732225843930,-60.49544188,0.0003863,11]
[342959702,1732225844195,-0.5,0.00038356,11]
[342959703,1732225844209,-499.5,0.00038356,11]
[342959704,1732225844218,-162.3129879,0.0003863,11]
[342959705,1732225844227,-500.0,0.0003863,11]
[342959706,1732225844237,-500.0,0.0003863,11]
[342959707,1732225844247,-151.0,0.0003863,14]
[342959708,1732225844255,-151.0,0.0003863,14]
[342959709,1732225844268,-151.0,0.0003863,14]
[342959710,1732225844278,-500.0,0.0003863,11]
[342959711,1732225844288,-55.77809952,0.0003863,11]
[342959712,1732225844306,-444.22190048,0.0003863,11]
[342959713,1732225844316,-191.25809952,0.0003863,11]
[342959714,1732225844331,-644.02035499,0.00038156,2]
[342959715,1732225844386,-329.63804641,0.00038156,2]
[342959716,1732225844397,-378.71801045,0.00038156,2]
[342959717,1732225844509,-6041.23048747,0.00038156,2]
[342959718,1732225844522,-4423.96699531,0.00038156,2]
[342959719,1732225844535,-42050.45519974,0.00038156,2]
[342959720,1732225844557,-57886.34970563,0.00038156,2]
[342959721,1732225844568,-308.74190048,0.0003863,11]
[342959722,1732225844579,-500.0,0.0003863,11]
[342959723,1732225844588,-152.27412,0.0003863,14]
[342959724,1732225844598,-500.0,0.0003863,11]
[342959725,1732225844608,-500.0,0.0003863,11]
[342959726,1732225844618,-500.0,0.0003863,11]
[342959727,1732225844628,-500.0,0.0003863,11]
[342959728,1732225844639,-500.0,0.0003863,11]
[342959729,1732225844649,-500.0,0.0003863,11]
[342959730,1732225844661,-500.0,0.0003863,11]
[342959731,1732225844671,-500.0,0.0003863,11]
[342959732,1732225844680,-500.0,0.0003863,11]
[342959733,1732225844690,-500.0,0.0003863,11]
[342959734,1732225844699,-151.0,0.0003863,14]
[342959735,1732225844710,-500.0,0.0003863,11]
[342959736,1732225844719,-151.0,0.0003863,14]
[342959737,1732225844729,-151.0,0.0003863,14]
[342959738,1732225844739,-151.0,0.0003863,14]
[342959739,1732225844749,-500.0,0.0003863,11]
[342959740,1732225844759,-500.0,0.0003863,11]
[342959741,1732225844769,-500.0,0.0003863,11]
[342959742,1732225844778,-500.0,0.0003863,11]
[342959743,1732225844788,-500.0,0.0003863,11]
[342959744,1732225844797,-500.0,0.0003863,11]
[342959745,1732225844807,-500.0,0.0003863,11]
[342959746,1732225844817,-500.0,0.0003863,11]
[342959747,1732225844826,-500.0,0.0003863,11]
[342959748,1732225844836,-500.0,0.0003863,11]
[342959749,1732225844846,-500.0,0.0003863,11]
[342959750,1732225844856,-151.0,0.0003863,14]
[342959751,1732225844865,-151.0,0.0003863,14]
[342959752,1732225844875,-227.513394,0.0003863,14]
[342959753,1732225844884,-501.95846981,0.0003863,11]
[342959754,1732225844893,-153.14,0.0003863,11]
[342959755,1732225844903,-500.0,0.0003863,11]
[342959756,1732225844913,-500.0,0.0003863,11]
[342959757,1732225844923,-500.0,0.0003863,11]
[342959758,1732225844932,-500.0,0.0003863,11]
[342959759,1732225844942,-500.0,0.0003863,11]
[342959760,1732225844951,-500.0,0.0003863,11]
[342959761,1732225844961,-648.78,0.0003863,11]
[342959762,1732225844971,-500.0,0.0003863,11]
[342959763,1732225844980,-500.0,0.0003863,11]
[342959764,1732225844991,-500.0,0.0003863,11]
[342959765,1732225845001,-500.0,0.0003863,11]
[342959766,1732225845010,-500.0,0.0003863,11]
[342959767,1732225845020,-500.0,0.0003863,11]
[342959768,1732225845029,-500.0,0.0003863,11]
[342959769,1732225845039,-500.0,0.0003863,11]
[342959770,1732225845048,-500.0,0.0003863,11]
[342959771,1732225845058,-500.0,0.0003863,11]
[342959772,1732225845067,-500.0,0.0003863,11]
[342959773,1732225845077,-500.0,0.0003863,11]
[342959774,1732225845086,-500.0,0.0003863,11]
[342959775,1732225845096,-500.0,0.0003863,11]
[342959776,1732225845107,-500.0,0.0003863,11]
[342959777,1732225845119,-520.65,0.0003863,11]
[342959778,1732225845128,-532.23,0.0003863,11]
[342959779,1732225845138,-394.62,0.0003863,11]
[342959780,1732225845148,-500.0,0.0003863,11]
[342959781,1732225845158,-500.0,0.0003863,11]
[342959782,1732225845168,-500.0,0.0003863,11]
[342959783,1732225845178,-500.0,0.0003863,11]
[342959784,1732225845188,-500.0,0.0003863,11]
[342959785,1732225845200,-244.50179,0.0003863,14]
[342959786,1732225845211,-500.0,0.0003863,11]
[342959787,1732225845220,-244.50179,0.0003863,14]
[342959788,1732225845229,-244.50179,0.0003863,14]
[342959789,1732225845239,-633.12,0.0003863,7]
[342959790,1732225845250,-244.50179,0.0003863,14]
[342959791,1732225845260,-500.0,0.0003863,11]
[342959792,1732225845270,-244.50179,0.0003863,14]
[342959793,1732225845281,-244.50179,0.0003863,14]
[342959794,1732225845291,-151.0,0.0003863,14]
[342959795,1732225845301,-151.0,0.0003863,14]
[342959796,1732225845311,-500.0,0.0003863,11]
[342959797,1732225845320,-151.0,0.0003863,14]
[342959798,1732225845330,-161.102426,0.0003863,14]
[342959799,1732225845341,-500.0,0.0003863,11]
[342959800,1732225845351,-500.0,0.0003863,11]
[342959801,1732225845360,-207.82,0.0003863,11]
[342959802,1732225845371,-500.0,0.0003863,11]
[342959803,1732225845380,-500.0,0.0003863,11]
[342959804,1732225845390,-158.04,0.0003863,11]
[342959805,1732225845401,-500.0,0.0003863,11]
[342959806,1732225845411,-500.0,0.0003863,11]
[342959807,1732225845421,-500.0,0.0003863,11]
[342959808,1732225845430,-500.0,0.0003863,11]
[342959809,1732225845440,-500.0,0.0003863,11]
[342959810,1732225845451,-556.29265592,0.0003863,11]
[342959811,1732225845460,-500.0,0.0003863,11]
[342959812,1732225845470,-545.5,0.0003863,11]
[342959813,1732225845480,-500.0,0.0003863,11]
[342959814,1732225845490,-500.0,0.0003863,11]
[342959815,1732225845499,-500.0,0.0003863,11]
[342959816,1732225845509,-500.0,0.0003863,11]
[342959817,1732225845519,-500.0,0.0003863,11]
[342959818,1732225845528,-500.0,0.0003863,11]
[342959819,1732225845538,-500.0,0.0003863,11]
[342959820,1732225845548,-500.0,0.0003863,11]
[342959821,1732225845558,-500.0,0.0003863,11]
[342959822,1732225845567,-500.0,0.0003863,11]
[342959823,1732225845577,-500.0,0.0003863,11]
[342959824,1732225845586,-500.0,0.0003863,11]
[342959825,1732225845596,-500.0,0.0003863,11]
[342959826,1732225845605,-500.0,0.0003863,11]
[342959827,1732225845615,-500.0,0.0003863,11]
[342959828,1732225845624,-500.0,0.0003863,11]
[342959829,1732225845634,-500.0,0.0003863,11]
[342959830,1732225845645,-836.724121,0.0003863,14]
[342959831,1732225845655,-151.0,0.0003863,14]
[342959832,1732225845664,-836.724121,0.0003863,14]
[342959833,1732225845674,-151.0,0.0003863,14]
[342959834,1732225845684,-836.724121,0.0003863,14]
[342959835,1732225845693,-294.081962,0.0003863,14]
[342959836,1732225845703,-836.724121,0.0003863,14]
[342959837,1732225845713,-510.65,0.0003863,11]
[342959838,1732225845723,-151.0,0.0003863,14]
[342959839,1732225845733,-151.0,0.0003863,14]
[342959840,1732225845742,-151.0,0.0003863,14]
[342959841,1732225845752,-151.0,0.0003863,14]
[342959842,1732225845762,-500.0,0.0003863,11]
[342959843,1732225845771,-836.724121,0.0003863,14]
[342959844,1732225845781,-836.724121,0.0003863,14]
[342959845,1732225845791,-836.724121,0.0003863,14]
[342959846,1732225845800,-836.724121,0.0003863,14]
[342959847,1732225845810,-500.0,0.0003863,11]
[342959848,1732225845820,-530.207138,0.0003863,14]
[342959849,1732225845830,-530.207138,0.0003863,14]
[342959850,1732225845840,-500.0,0.0003863,11]
[342959851,1732225845850,-500.0,0.0003863,11]
[342959852,1732225845861,-500.0,0.0003863,11]
[342959853,1732225845871,-500.0,0.0003863,11]
[342959854,1732225845881,-214.45738253,0.0003863,14]
[342959855,1732225845898,-315.74975547,0.0003863,14]
[342959856,1732225845909,-530.207138,0.0003863,14]
[342959857,1732225845918,-500.0,0.0003863,11]
[342959858,1732225845928,-500.0,0.0003863,11]
[342959859,1732225845938,-600.78,0.0003863,11]
[342959860,1732225845948,-90.12221671,0.0003863,11]
[342959861,1732225845960,-409.87778329,0.0003863,11]
[342959862,1732225845970,-500.0,0.0003863,11]
[342959863,1732225845980,-500.0,0.0003863,11]
[342959864,1732225845990,-500.0,0.0003863,11]
[342959865,1732225846000,-500.0,0.0003863,11]
[342959866,1732225846011,-500.0,0.0003863,11]
[342959867,1732225846022,-151.0,0.0003863,14]
[342959868,1732225846032,-368.034923,0.0003863,14]
[342959869,1732225846042,-183.792629,0.0003863,14]
[342959870,1732225846052,-368.034923,0.0003863,14]
[342959872,1732225846062,-500.0,0.0003863,11]
[342959873,1732225846072,-368.034923,0.0003863,14]
[342959874,1732225846096,-368.034923,0.0003863,14]
[342959875,1732225846107,-500.0,0.0003863,11]
[342959876,1732225846117,-500.0,0.0003863,11]
[342959877,1732225846127,-500.0,0.0003863,11]
[342959878,1732225846138,-333.75109571,0.0003863,11]
[342959882,1732225846308,-224.4,0.0003862,10]
[342959883,1732225846319,-68.772,0.0003863,11]
[342959884,1732225846602,-97.47690429,0.0003863,11]
[342959885,1732225846612,-368.034923,0.0003863,14]
[342959886,1732225846622,-34.48817271,0.0003863,14]
[342959892,1732226815109,-155.09,0.00015342,2]
[342959893,1732226815132,-1.7189907,0.00015342,2]
[342959920,1732227031585,-150.0,0.00015342,2]
[342959921,1732227031595,-150.0,0.00015342,2]
[342959922,1732227031604,-150.0,0.00015342,2]
[342959923,1732227031613,-158.1110093,0.00015342,2]
[342959924,1732227031622,-150.0,0.00016862,2]
[342959925,1732227031631,-99.9389907,0.00023711,2]
[342959926,1732227031642,-1635.4878737,0.00023711,2]
[342959927,1732227031684,-250.0,0.00023711,2]
[342959928,1732227031695,-1448.61280521,0.00023711,2]
[342959929,1732227031705,-1429.907759,0.00023811,2]
[342959930,1732227031715,-3434.03966961,0.00023821,2]
[342959931,1732227031724,-3387.43976618,0.00023931,2]
[342959932,1732227031736,-46.59990343,0.00023931,2]
[342959933,1732227031745,-155.09,0.00024031,2]
[342959934,1732227031754,-1196.18167376,0.0002451,5]
[342959935,1732227031763,-159.83,0.00025479,2]
[342959936,1732227031772,-280.0,0.00030999,30]
[342959937,1732227031781,-127.68134281,0.00031,2]
[342959945,1732227037438,-122.31865719,0.00031,2]
[342959946,1732227037448,-155.09,0.0003272,2]
[342959947,1732227037458,-300.0,0.00033,2]
[342959948,1732227037467,-1214.69,0.00034425,2]
[342959949,1732227037477,-350.0,0.00035,2]
[342959950,1732227037487,-159.83,0.00035616,2]
[342959951,1732227037501,-300.0,0.000359,2]
[342959952,1732227037510,-300.0,0.000359,2]
[342959953,1732227037520,-300.0,0.000359,2]
[342959954,1732227037531,-300.0,0.000359,2]
[342959955,1732227037541,-300.0,0.000359,2]
[342959956,1732227037550,-300.43458934,0.000359,2]
[342959957,1732227037560,-1261.06,0.00035903,2]
[342959958,1732227037569,-772.47,0.0003591,2]
[342959959,1732227037578,-150.14,0.00035927,2]
[342959960,1732227037588,-253.95,0.00036105,120]
[342959961,1732227037597,-1000.0,0.00036123,2]
[342959962,1732227037607,-1184.16,0.0003613,2]
[342959963,1732227037616,-250.0,0.00036155,2]
[342959964,1732227037626,-913.83,0.000362,2]
[342959965,1732227037635,-250.0,0.00036221,120]
[342959966,1732227037646,-314.04,0.00036273,120]
[342959967,1732227037655,-190.27,0.00036298,2]
[342959968,1732227037665,-500.0,0.00036338,2]
[342959969,1732227037675,-150.0,0.00036459,2]
[342959970,1732227037685,-200.0,0.00036474,2]
[342959971,1732227037695,-182.31,0.00036482,120]
[342959972,1732227037705,-250.0,0.00036511,2]
[342959973,1732227037715,-1214.69,0.00036689,2]
[342959974,1732227037726,-169.28,0.00036697,2]
[342959975,1732227037735,-200.0,0.00036708,120]
[342959976,1732227037745,-326.99,0.00036867,2]
[342959977,1732227037755,-400.0,0.00037,2]
[342959978,1732227037764,-710.94070955,0.00037247,120]
[342959979,1732227037774,-327.05785189,0.00037247,120]
[342959980,1732227037784,-155.4,0.00037247,30]
[342959981,1732227037794,-150.0,0.00037247,2]
[342959982,1732227037803,-158.260144,0.00037247,40]
[342959983,1732227037813,-500.0,0.00037247,60]
[342959984,1732227037823,-500.0,0.00037247,60]
[342959985,1732227037832,-589.89322422,0.00037247,60]
[342959986,1732227037841,-1000.0,0.00037247,30]
[342959987,1732227037851,-1000.0,0.00037247,30]
[342959988,1732227037861,-1000.0,0.00037247,30]
[342959989,1732227037870,-1000.0,0.00037247,30]
[342959990,1732227037879,-1689.205116,0.00037247,30]
[342959991,1732227037890,-837.63,0.00037301,2]
[342959992,1732227037899,-837.63,0.00037311,2]
[342959993,1732227037908,-837.63,0.00037321,2]
[342959994,1732227037917,-837.63,0.00037331,2]
[342959995,1732227037927,-922.714,0.0003734,48]
[342959996,1732227037936,-837.63,0.0003734,2]
[342959997,1732227037945,-837.63,0.0003735,2]
[342959998,1732227037955,-837.63,0.0003736,2]
[342959999,1732227037964,-837.63,0.0003737,2]
[342960000,1732227037973,-837.63,0.0003738,2]
[342960001,1732227037982,-837.63,0.0003739,2]
[342960002,1732227037992,-23900.0,0.00037399,2]
[342960003,1732227038001,-837.63,0.00037399,2]
[342960004,1732227038011,-837.63,0.00037409,2]
[342960005,1732227038021,-837.63,0.00037419,2]
[342960006,1732227038030,-837.63,0.00037429,2]
[342960008,1732227038040,-837.63,0.00037439,2]
[342960009,1732227038050,-4284.6358438,0.00037448,2]
[342960010,1732227038060,-837.63,0.00037448,2]
[342960011,1732227038070,-837.63,0.00037458,2]
[342960012,1732227038079,-837.63,0.00037468,2]
[342960013,1732227038089,-837.63,0.00037478,2]
[342960014,1732227038099,-837.63,0.00037488,2]
[342960015,1732227038108,-190.27,0.00037641,2]
[342960016,1732227038304,-250.94634905,0.000377,2]
[342960017,1732227038314,-225.0,0.00037796,2]
[342960018,1732227038323,-565.27088097,0.00038,14]
[342960019,1732227038334,-710.94070955,0.00038,120]
[342960020,1732227038343,-327.05785189,0.00038,120]
[342960021,1732227038355,-2545.58595487,0.00038,14]
[342960022,1732227038365,-250.0,0.0003805,2]
[342960023,1732227038375,-250.0,0.0003805,5]
[342960024,1732227038384,-250.0,0.0003805,10]
[342960025,1732227038394,-250.0,0.0003805,20]
[342960026,1732227038403,-244.05,0.0003805,40]
[342960027,1732227038413,-2891.9101,0.00038156,2]
[342960028,1732227038423,-2555.9608,0.00038156,2]
[342960029,1732227038433,-263.743,0.00038156,2]
[342960030,1732227038445,-150.14,0.00038207,2]
[342960031,1732227038454,-1484.5930429,0.00038247,2]
[342960032,1732227038475,-4516.73852,0.00038247,2]
[342960033,1732227038488,-1199.4100075,0.00038247,2]
[342960034,1732227038517,-142.8125296,0.00038247,2]
[342960035,1732227038527,-2037.39202691,0.00038256,2]
[342960036,1732227038539,-1997.55822101,0.00038256,2]
[342960039,1732227039414,-1215.76648208,0.00038256,2]
[342960040,1732227039426,-853.95827,0.00038256,2]
[342960041,1732227039436,-217.1381,0.00038256,2]
[342960042,1732227039445,-2147.31749598,0.00038256,15]
[342960043,1732227039455,-1221.1548422,0.00038256,15]
[342960044,1732227039464,-187.0,0.00038346,10]
[342960045,1732227039474,-151.0,0.00038356,7]
[342960046,1732227039484,-151.0,0.00038356,7]
[342960047,1732227039498,-151.0,0.00038356,7]
[342960048,1732227039507,-151.0,0.00038356,7]
[342960049,1732227039517,-151.0,0.00038356,7]
[342960050,1732227039526,-500.0,0.00038356,11]
[342960051,1732227039538,-246.72940505,0.00038356,11]
[342960052,1732227039550,-253.27059495,0.00038356,11]
[342960053,1732227039559,-500.0,0.00038356,11]
[342960054,1732227039570,-500.0,0.00038356,11]
[342960055,1732227039580,-500.0,0.00038356,11]
[342960056,1732227039590,-500.0,0.00038356,11]
[342960057,1732227039601,-249.29830953,0.00038356,11]
[342960058,1732227039612,-250.70169047,0.00038356,11]
[342960059,1732227039621,-500.0,0.00038356,11]
[342960060,1732227039631,-500.0,0.00038356,11]
[342960061,1732227039640,-500.0,0.00038356,11]
[342960062,1732227039649,-64.23281935,0.00038356,11]
[342960063,1732227039660,-435.76718065,0.00038356,11]
[342960064,1732227039670,-500.0,0.00038356,11]
[342960065,1732227039679,-405.10744835,0.00038356,11]
[342960066,1732227039691,-94.89255165,0.00038356,11]
[342960067,1732227039700,-281.70339833,0.00038356,11]
[342960068,1732227039712,-218.29660167,0.00038356,11]
[342960069,1732227039721,-51.04548814,0.00038356,11]
[342960077,1732227042860,-448.95451186,0.00038356,11]
[342960078,1732227042869,-58.28548818,0.00038356,11]
[342960079,1732227042880,-169.69960741,0.00038356,11]
[342960080,1732227042889,-500.0,0.00038356,11]
[342960081,1732227042899,-500.0,0.00038356,11]
[342960082,1732227042907,-500.0,0.00038356,11]
[342960083,1732227042916,-500.0,0.00038356,11]
[342960084,1732227042925,-217.53,0.00038356,11]
[342960085,1732227042935,-500.0,0.00038356,11]
[342960086,1732227042943,-500.0,0.00038356,11]
[342960087,1732227042953,-500.0,0.00038356,11]
[342960088,1732227042962,-500.0,0.00038356,11]
[342960089,1732227042970,-496.48454521,0.00038356,11]
[342960090,1732227042979,-500.0,0.00038356,11]
[342960091,1732227042988,-416.8,0.00038356,11]
[342960092,1732227042996,-500.0,0.00038356,11]
[342960093,1732227043006,-500.0,0.00038356,11]
[342960094,1732227043014,-500.0,0.00038356,11]
[342960095,1732227043023,-500.0,0.00038356,11]
[342960096,1732227043032,-500.0,0.00038356,11]
[342960097,1732227043041,-500.0,0.00038356,11]
[342960098,1732227043050,-500.0,0.00038356,11]
[342960099,1732227043059,-500.0,0.00038356,11]
[342960100,1732227043068,-500.0,0.00038356,11]
[342960101,1732227043078,-500.0,0.00038356,11]